Cogmind - Beta 12 @@@ ROGUE MODE // 2024.02.22 @ 22:08:08 // Winter2019/RPGLIKE Player: Luminiferous Result: Destroyed by G-47 Trooper with Particle Gun Performance ------------- Evolutions (2) 1000 Regions Visited (6) 1200 Robots Destroyed (61) 305 Value Destroyed (1322) 1322 Prototype IDs (31) 620 Alien Tech Used (0) 0 Bonus (152) 152 TOTAL SCORE: 4599 Bonus ------- High Alert Combat Kills 53 Follower Combat Kills 132 Friendly Fire -33 Cogmind --------- Core Integrity 0/600 Matter 284/300 Energy 220/220 System Corruption 0% Temperature Hot (232) Movement Flying (27) Location -8/Storage Parts ------- > --- POWER (2) -------- Light Nuclear Core Light Nuclear Core > --- PROPULSION (4) --- Improved Flight Unit Improved VTOL Module Improved VTOL Module Improved VTOL Module > --- UTILITY (5) ------ Advanced Weight Redist. System Experimental Sensor Array Improved Signal Interpreter Microactuators Improved Light Armor Plating > --- WEAPON (2) ------- Light Cannon Light Cannon > --- INVENTORY (4) ---- Improved Flight Unit Microactuators Medium Armor Plating Mini Grenade Launcher Peak State ------------ > --- POWER ------------ Light Nuclear Core Light Nuclear Core > --- PROPULSION ------- Improved VTOL Module Improved VTOL Module Improved VTOL Module Improved VTOL Module > --- UTILITY ---------- Advanced Weight Redist. System Experimental Sensor Array Improved Signal Interpreter Microactuators Hardened Light Armor Plating > --- WEAPON ----------- Light Cannon Mini Grenade Launcher > --- INVENTORY -------- Microactuators Light Cannon [Rating: 46] Favorites ----------- Power Light Nuclear Core Engine Ion Engine Power Core Light Nuclear Core Propulsion Improved VTOL Module Wheel Wheel Hover Unit Aerolev Unit Flight Unit Improved VTOL Module Utility Experimental Sensor Array Device Experimental Sensor Array Processor Improved Signal Interpreter Protection Hardened Light Armor Plating Weapon Light Cannon Energy Gun Small Laser Energy Cannon Advanced Beam Cannon Ballistic Gun Assault Rifle Ballistic Cannon Light Cannon Launcher Mini Grenade Launcher Build | -11 -10 -10 -10 -9 -8 -8 ------- Run | Jun Mat Min Exi Min Mat Sto Slots Evolved 9 | 3 . . . . 6 . Power 1 | . . . . . 1 . Propulsion 3 | 1 . . . . 2 . Utility 4 | 1 . . . . 3 . Weapon 1 | 1 . . . . . . Parts Attached 61 | 2 15 5 . 1 36 2 Power 6 | . 1 . . . 5 . Engine 2 | . 1 . . . 1 . Core 4 | . . . . . 4 . Reactor . | . . . . . . . Propulsion 19 | 2 4 . . . 12 1 Treads . | . . . . . . . Leg . | . . . . . . . Wheel 4 | 2 2 . . . . . Hover 1 | . . . . . 1 . Flight 14 | . 2 . . . 11 1 Utility 12 | . . 1 . 1 9 1 Device 8 | . . 1 . 1 5 1 Storage . | . . . . . . . Processor 1 | . . . . . 1 . Hackware . | . . . . . . . Protection 3 | . . . . . 3 . Artifact . | . . . . . . . Weapon 24 | . 10 4 . . 10 . Energy Gun 3 | . 2 . . . 1 . Energy Cannon 1 | . . . . . 1 . Ballistic Gun 5 | . 5 . . . . . Ballistic Cannon 9 | . 2 2 . . 5 . Launcher 6 | . 1 2 . . 3 . Special Weapon . | . . . . . . . Impact Weapon . | . . . . . . . Slashing Weapon . | . . . . . . . Piercing Weapon . | . . . . . . . Special Melee Weapon . | . . . . . . . Unidentified Prototypes 8 | . 1 1 . . 5 1 Parts Lost . | . . . . . . . Power . | . . . . . . . Propulsion . | . . . . . . . Utility . | . . . . . . . Weapon . | . . . . . . . Highest Loss Streak . | . . . . . . . To Critical Strikes . | . . . . . . . Average Slot Usage (%) 85 | . 69 78 85 92 97 100 Engine 8 | . 14 14 14 14 . . Core 5 | . . . . . 12 15 Wheel 17 | . 27 28 28 28 4 . Flight 11 | . . . . . 26 30 Device 13 | . . 7 14 21 22 23 Processor 3 | . . . . . 8 7 Protection 1 | . . . . . 2 7 Ballistic Gun 3 | . 16 . . . . . Ballistic Cannon 18 | . 7 27 28 28 15 15 Naked Turns . | . . . . . . . Heaviest Build 25 | 4 11 12 12 12 25 23 Greatest Support 32 | 26 26 26 26 32 32 29 Greatest Overweight (x) 2 | 1 2 . . . 1 . Average Overweight (x) . | . . . . . . . Largest Inventory Capacity 4 | 3 3 3 3 3 4 4 Average Capacity 3 | 1 3 3 3 3 3 4 Most Carried 4 | 1 3 2 1 2 4 4 Average Carried 1 | . 2 1 1 1 2 3 Final Capacity 4 | 3 3 3 3 3 4 4 Final Carried 4 | 1 1 1 1 1 4 4 Class Distribution -------------------- 64% | Mutant 31% | Sprinter 3% | Scavenger-Sprinter Dominant Class ---------------- Mutant | -10/Materials Mutant | -10/Mines Mutant | -10/Exiles Mutant | -9/Mines Sprinter | -8/Materials Sprinter | -8/Storage Resources | -11 -10 -10 -10 -9 -8 -8 ----------- Run | Jun Mat Min Exi Min Mat Sto Matter Collected 1906 | 200 424 180 . 16 959 127 Remotely . | . . . . . . . Salvage Created 1226 | . 326 143 . . 645 112 Parts 100 | . 37 13 . . 44 6 Haulers Intercepted 7 | . 2 . . . 4 1 Recyclers Shooed . | . . . . . . . Parts Field Recycled . | . . . . . . . Retrieved Matter . | . . . . . . . Parts Self-Destructed . | . . . . . . . Prevented . | . . . . . . . Kills | -11 -10 -10 -10 -9 -8 -8 ------- Run | Jun Mat Min Exi Min Mat Sto Combat Hostiles Destroyed 46 | . 14 12 . . 19 1 Guns 9 | . 9 . . . . . Cannons 21 | . 2 6 . . 12 1 AOE 16 | . 3 6 . . 7 . Classes Destroyed 8 | . 4 . . . 4 . Worker 4 | . . . . . 4 . Builder 3 | . 1 . . . 2 . Hauler 7 | . 2 . . . 4 1 Watcher 1 | . . . . . 1 . Swarmer 23 | . 6 9 . . 8 . Grunt 17 | . 8 3 . . 6 . Duelist 1 | . . . . . 1 . Sentry 5 | . . . . . 4 1 Best Kill Streak 7 | . 6 5 . . 7 2 Combat Bots Only 6 | . 5 5 . . 6 1 Max Kills in Single Turn 3 | . 2 3 . . 3 1 Gunslinging . | . . . . . . . Exploded 3 | . 2 3 . . 2 . Melee . | . . . . . . . Uniques/NPCs Destroyed . | . . . . . . . Combat | -11 -10 -10 -10 -9 -8 -8 -------- Run | Jun Mat Min Exi Min Mat Sto Damage Taken 1945 | . 652 209 . . 967 117 Core 1510 | . 533 167 . . 724 86 Absorbed by Shields . | . . . . . . . Redirected to Core 1217 | . 390 119 . . 622 86 Core Remaining (%) 83 | 100 . . . 66 . . Volleys Fired 132 | . 45 15 1 . 65 6 Largest 2 | . 2 2 2 . 2 2 Hottest 70 | . 70 70 70 . 70 70 Shots Fired 259 | . 88 29 2 . 128 12 Gun 74 | . 74 . . . . . Cannon 173 | . 12 26 2 . 121 12 Launcher 12 | . 2 3 . . 7 . Special . | . . . . . . . Kinetic 235 | . 74 26 2 . 121 12 Thermal 12 | . 12 . . . . . Explosive 12 | . 2 3 . . 7 . Electromagnetic . | . . . . . . . Robot Hit Streak 15 | . 8 6 . . 15 3 Robot Miss Streak 4 | . 4 2 . . 4 4 Penetration Max . | . . . . . . . Secondary Targets 1 | . 1 . . . . . Max Gunslinging Chain 1 | . 1 . . . . . Shots Hit Robots 144 | . 50 19 . . 72 3 Core Hits 87 | . 23 15 . . 46 3 Critical Kills 1 | . 1 . . . . . Critical Parts Destroyed . | . . . . . . . Critical Strikes 6 | . 3 . . . 3 . Destroy 1 | . 1 . . . . . Blast 5 | . 2 . . . 3 . Melee Attacks . | . . . . . . . Impact . | . . . . . . . Slashing . | . . . . . . . Piercing . | . . . . . . . Sneak Attacks . | . . . . . . . Combat Hostiles . | . . . . . . . Follow-up Attacks . | . . . . . . . Damage Inflicted 3582 | . 990 582 . . 1959 51 Guns 513 | . 513 . . . . . Cannons 1719 | . 119 299 . . 1250 51 Explosions 1346 | . 358 279 . . 709 . Melee . | . . . . . . . Ramming 4 | . . 4 . . . . Kinetic 2159 | . 559 299 . . 1250 51 Thermal 73 | . 73 . . . . . Explosive 1346 | . 358 279 . . 709 . Electromagnetic . | . . . . . . . Impact . | . . . . . . . Slashing . | . . . . . . . Piercing . | . . . . . . . Highest Corruption . | . . . . . . . Average Corruption . | . . . . . . . Corruption Purged . | . . . . . . . Corruption Blocked . | . . . . . . . Overload Shots . | . . . . . . . Overflow Damage 88 | . 8 39 . . 41 . Projectiles 35 | . 8 22 . . 5 . Explosions 53 | . . 17 . . 36 . Melee . | . . . . . . . Knockbacks 20 | . 1 3 . . 16 . Impact . | . . . . . . . Kinetic 20 | . 1 3 . . 16 . Secondary . | . . . . . . . Self-Inflicted Damage 213 | . 139 2 . . 72 . Shots 4 | . 2 . . . 2 . Rammed 2 | . . 2 . . . . Targets Rammed 2 | . . 2 . . . . Kicked . | . . . . . . . Crushed . | . . . . . . . Highest Temperature 587 | . 84 45 9 . 587 223 Average Temperature 126 | . 30 13 6 . 149 90 Received Heat Transfer 609 | . 177 27 . . 324 81 Effects 20 | . . . . . 20 . Shutdowns 6 | . . . . . 6 . Energy Bleed 4 | . . . . . 4 . Interference 1 | . . . . . 1 . Matter Decay 3 | . . . . . 3 . Short Circuit 1 | . . . . . 1 . Damage (minor) 2 | . . . . . 2 . Damage (major) 3 | . . . . . 3 . Siege Activations . | . . . . . . . Robots Corrupted . | . . . . . . . Combat Hostiles . | . . . . . . . Parts Fried . | . . . . . . . Impact Corruptions . | . . . . . . . Robots Melted . | . . . . . . . Combat Hostiles . | . . . . . . . Parts Melted . | . . . . . . . Heat Transferred 175 | . 175 . . . . . Parts Sabotaged . | . . . . . . . Parts Stolen . | . . . . . . . Parts Stripped . | . . . . . . . Power Chain Reactions . | . . . . . . . Missiles Intercepted . | . . . . . . . Alert | -11 -10 -10 -10 -9 -8 -8 ------- Run | Jun Mat Min Exi Min Mat Sto Peak Influence 614 | . 414 474 . . 614 357 Initial 259 | . . 126 . . . 259 Average 291 | . 228 327 . . 316 309 Maximum Alert Level 2 | . 2 2 . . 2 1 Low Security (%) 19 | 100 32 14 . 100 12 . Level 1 60 | . 64 54 . . 61 100 Level 2 20 | . 3 31 . . 25 . Level 3 . | . . . . . . . Level 4 . | . . . . . . . Level 5 . | . . . . . . . High Security . | . . . . . . . Max Security . | . . . . . . . Squads Dispatched 14 | . 5 . . . 7 2 Investigation 7 | . 2 . . . 3 2 Extermination . | . . . . . . . Reinforcement 7 | . 3 . . . 4 . Assault . | . . . . . . . Garrison . | . . . . . . . Intercept . | . . . . . . . Searches Triggered . | . . . . . . . Construction Impeded . | . . . . . . . Haulers Reinforced . | . . . . . . . Active Scanning Responses . | . . . . . . . Cargo Convoy Interrupts . | . . . . . . . Stealth | -11 -10 -10 -10 -9 -8 -8 --------- Run | Jun Mat Min Exi Min Mat Sto Distress Signals 4 | . 2 . . . 2 . Communications Jammed . | . . . . . . . Distress Signals . | . . . . . . . Times Spotted 84 | . 24 18 . . 39 3 Peak Tracking Total 12 | . 4 5 . . 12 4 Tactical Retreats 4 | . . 2 . . 2 . Traps | -11 -10 -10 -10 -9 -8 -8 ------- Run | Jun Mat Min Exi Min Mat Sto Traps Triggered 6 | . 4 . . . 1 1 Indirectly . | . . . . . . . Trap Hack Attempts . | . . . . . . . Triggered . | . . . . . . . Disarmed . | . . . . . . . Reprogrammed . | . . . . . . . Reused . | . . . . . . . Traps Extracted . | . . . . . . . Installed . | . . . . . . . Triggered . | . . . . . . . Machines | -11 -10 -10 -10 -9 -8 -8 ---------- Run | Jun Mat Min Exi Min Mat Sto Machines Disabled 8 | . 2 . . . 5 1 Max in Single Turn 2 | . 2 . . . 2 1 Machines Repaired . | . . . . . . . Machines Sabotaged . | . . . . . . . Overloaded Fab Kills . | . . . . . . . Hacking | -11 -10 -10 -10 -9 -8 -8 --------- Run | Jun Mat Min Exi Min Mat Sto Machines Accessed 6 | . 1 . 1 . 2 2 Terminals 5 | . 1 . . . 2 2 Fabricators . | . . . . . . . Repair Stations . | . . . . . . . Recycling Units . | . . . . . . . Scanalyzers . | . . . . . . . Garrison Access . | . . . . . . . Total Hacks 20 | . 4 . 1 . 8 7 Successful 10 | . 2 . 1 . 5 2 Failed 10 | . 2 . . . 3 5 Catastrophic 4 | . 1 . . . 2 1 Database Lockouts . | . . . . . . . Manual 17 | . 4 . 2 . 7 4 Terminals 19 | . 4 . . . 8 7 Fabricators . | . . . . . . . Repair Stations . | . . . . . . . Recycling Units . | . . . . . . . Scanalyzers . | . . . . . . . Garrison Access . | . . . . . . . Terminal Hacks 6 | . 1 . 1 . 3 1 Open Door 1 | . . . . . . 1 Terminal Index 2 | . 1 . . . 1 . Alert Level 1 | . . . . . 1 . Hauler Manifests 1 | . . . . . 1 . EX-Prototype ID Bank 1 | . . . 1 . . . Fabricator Hacks . | . . . . . . . Repair Station Hacks . | . . . . . . . Recycling Unit Hacks . | . . . . . . . Scanalyzer . | . . . . . . . Garrison Access Hacks . | . . . . . . . Unauthorized Hacks 4 | . 1 . . . 2 1 Terminals 4 | . 1 . . . 2 1 Botnet 4 | . 1 . . . 2 1 Fabricators . | . . . . . . . Repair Stations . | . . . . . . . Recycling Units . | . . . . . . . Scanalyzers . | . . . . . . . Garrison Access . | . . . . . . . Data Cores Recovered . | . . . . . . . Used . | . . . . . . . Hacking Detections 5 | . 1 . . . 2 2 Full Trace Events 3 | . . . . . 2 1 Feedback Events . | . . . . . . . Feedback Blocked . | . . . . . . . Robot Schematics Acquired . | . . . . . . . Robots Built . | . . . . . . . Authchips . | . . . . . . . Time . | . . . . . . . Total Robot Build Rating . | . . . . . . . Part Schematics Acquired . | . . . . . . . Parts Built . | . . . . . . . Authchips . | . . . . . . . Time . | . . . . . . . Total Part Build Rating . | . . . . . . . Parts Repaired . | . . . . . . . Time . | . . . . . . . Parts Recycled . | . . . . . . . Recycled Matter . | . . . . . . . Retrieved Matter . | . . . . . . . Retrieved Components . | . . . . . . . Parts Scanalyzed . | . . . . . . . Part Schematics Acquired . | . . . . . . . Parts Damaged . | . . . . . . . Bothacking | -11 -10 -10 -10 -9 -8 -8 ------------ Run | Jun Mat Min Exi Min Mat Sto Used RIF Installer . | . . . . . . . Robots Hacked . | . . . . . . . Non-combat . | . . . . . . . Combat . | . . . . . . . Robot Hacks Applied . | . . . . . . . Relay Couplers Released . | . . . . . . . Fabnet Peak Effective % . | . . . . . . . Robots Rewired . | . . . . . . . Allies Hacked . | . . . . . . . Hacks Repelled . | . . . . . . . Allies | -11 -10 -10 -10 -9 -8 -8 -------- Run | Jun Mat Min Exi Min Mat Sto Total Allies 3 | . . 3 . . . . Largest Group 3 | . . 3 3 3 3 . Highest-Rated Group 40 | . . 40 40 40 40 . Highest-Rated Ally 16 | . . 16 16 16 16 . Total Orders . | . . . . . . . Ally Attacks 35 | . . 4 . . 31 . Total Damage 406 | . . 56 . . 350 . Kills 6 | . . 2 . . 4 . Allies Corrupted . | . . . . . . . Allies Melted . | . . . . . . . Intel | -11 -10 -10 -10 -9 -8 -8 ------- Run | Jun Mat Min Exi Min Mat Sto Robot Analysis Total . | . . . . . . . Derelict Logs Recovered 2 | . . 2 . . . . Drone Launches . | . . . . . . . Drone Recoveries . | . . . . . . . Exploration | -11 -10 -10 -10 -9 -8 -8 ------------- Run | Jun Mat Min Exi Min Mat Sto Turns Passed 3001 | 12 686 636 418 22 1153 74 Spaces Moved 2817 | 8 518 576 378 19 1183 135 Core 4 | 2 2 . . . . . Treads . | . . . . . . . Legs . | . . . . . . . Wheels 1628 | 6 515 576 378 19 134 . Hover . | . . . . . . . Flight 1185 | . 1 . . . 1049 135 Fastest Speed 26 | 80 80 90 90 90 26 26 Average Speed 64 | 87 90 90 90 90 35 26 Slowest Speed 200 | 100 200 90 90 90 105 27 Overloaded Moves . | . . . . . . . Propulsion Burnouts . | . . . . . . . Robots Hopped 13 | . . . . . 12 1 Cave-ins Triggered . | . . . . . . . Exploration Rate (%) 55 | 2 92 84 87 10 82 30 Regions Visited 6 Branch Regions 4 Pre-discovered Areas 1 | . . 1 . . . . Known Exits Taken 1 | . . . . . 1 . Unknown Exits Taken 5 | 1 1 1 1 1 . . Scrap Searched 3 | . . 2 . 1 . . Spaces Dug 6 | . . . . . 6 . Terrain Destroyed 140 | . 49 40 . . 51 . Melee . | . . . . . . . Projectile . | . . . . . . . AOE 140 | . 49 40 . . 51 . Terrain Rammed . | . . . . . . . Walls Destroyed . | . . . . . . . Machines Disabled . | . . . . . . . Actions | -11 -10 -10 -10 -9 -8 -8 --------- Run | Jun Mat Min Exi Min Mat Sto Total 3734 | 12 648 662 453 23 1776 160 Wait 616 | . 26 63 74 3 435 15 Move 2787 | 7 517 575 377 18 1160 133 Hop 11 | . . . . . 10 1 Pick Up 36 | 2 8 1 . 1 23 1 Fast Attach 22 | 1 8 . . . 12 1 Attach 17 | 1 4 1 . 1 10 . Detach . | . . . . . . . Swap 22 | . 3 4 . . 14 1 Drop 44 | 1 14 . . . 27 2 Fire 132 | . 45 15 1 . 65 6 Melee . | . . . . . . . Ram 2 | . . 2 . . . . Kick . | . . . . . . . Crush . | . . . . . . . Escape Stasis . | . . . . . . . Rewire 1 | . . . 1 . . . Trap . | . . . . . . . Miscellaneous 44 | . 23 1 . . 20 . Route ------- -11/Junkyard -10/Materials (discovered 3 exits: [*Mat x2] / [*Min]) -10/Mines -10/Exiles -9/Mines -8/Materials (discovered 4 exits: *Fac x3 / *Sto) -8/Storage History --------- Turn | Location | Event 2 | -11/Junkyard | Discovered new exit (range 1) 9 | -11/Junkyard | Upgraded with Propulsion slot (x1) 9 | -11/Junkyard | Upgraded with Utility slot (x1) 9 | -11/Junkyard | Upgraded with Weapon slot (x1) 13 | -11/Junkyard | Entered Materials 71 | -10/Materials | Discovered new exit (range 16) 274 | -10/Materials | Core integrity fell below 50% 307 | -10/Materials | Build established: Mutant 390 | -10/Materials | Reached level 2 395 | -10/Materials | Discovered new exit (range 8) 612 | -10/Materials | Discovered new exit (range 3) 699 | -10/Materials | Entered Mines 789 | -10/Mines | Reached level 3 801 | -10/Mines | Excavation squad dispatched 801 | -10/Mines | A large section of the Mines collapsed 967 | -10/Mines | Found a damaged Exp. Sensor Array with a note attached 971 | -10/Mines | Found Prototype Device 972 | -10/Mines | Identified Exp. Sensor Array 1051 | -10/Mines | Excavation squad dispatched 1167 | -10/Mines | Learned Materials terminal intel 1171 | -10/Mines | Learned location of Zion (-7) 1186 | -10/Mines | Assisted by bots powering up and referring to "LRC-V3" 1301 | -10/Mines | Excavation squad dispatched 1327 | -10/Mines | Deemed a non-threat by the Exiles lab entrance 1328 | -10/Mines | Discovered new exit (range 5) 1335 | -10/Mines | Entered Exiles 1335 | -10/Exiles | Found Exiles lab destroyed 1335 | -10/Exiles | Accompanied by 3 allies 1461 | -10/Exiles | Opened EX-Vault 1717 | -10/Exiles | Discovered new exit (range 14) 1753 | -10/Exiles | Entered Mines 1753 | -9/Mines | Accompanied by 3 allies 1754 | -9/Mines | Discovered new exit (range 15) 1755 | -9/Mines | Reached level 4 1775 | -9/Mines | Entered Materials 1775 | -8/Materials | Accompanied by 3 allies 1776 | -8/Materials | Loaded intel: 12 terminal locations 1777 | -8/Materials | Reached level 5 1811 | -8/Materials | Upgraded with Utility slot (x1) 1954 | -8/Materials | Reached level 6 1955 | -8/Materials | Upgraded with Propulsion slot (x1) 1970 | -8/Materials | Core integrity fell below 50% 2090 | -8/Materials | Upgraded with Power slot (x1) 2090 | -8/Materials | Upgraded with Propulsion slot (x1) 2090 | -8/Materials | Upgraded with Utility slot (x1) 2300 | -8/Materials | Discovered new exit (range 3) 2302 | -8/Materials | Identified exit to Factory 2369 | -8/Materials | Build established: Sprinter 2547 | -8/Materials | Reached level 7 2571 | -8/Materials | Upgraded with Utility slot (x1) 2644 | -8/Materials | Discovered exit to Factory (range 11) 2857 | -8/Materials | Discovered exit to Factory (range 4) 2924 | -8/Materials | Core integrity fell below 20% 2924 | -8/Materials | Discovered new exit (range 9) 2926 | -8/Materials | Identified exit to Storage 2928 | -8/Materials | Entered Storage 2930 | -8/Storage | Reached level 8 3002 | -8/Storage | Destroyed by G-47 Trooper with Particle Gun Last Messages --------------- 02951_ Dropped Cesium-ion Thruster. 02952_ Acquired Prototype Flight Unit. 02952_ Identified Imp. Flight Unit. 02953_ Dropped VTOL Module. 02954_ Acquired Imp. Flight Unit. 02957_ Slug penetrates Wall. 02963_ A-02 Transporter destroyed. 02965_ K-01 Serf collects debris. 02970_ T-07 Excavator is excavating. 02971_ K-01 Serf collects debris. 02974_ T-07 Excavator is excavating. 02975_ Triggered Alarm Trap. 02975_ An alarm sounds. 02975_ ALERT: Alarm triggered, dispatching investigation squad. 02975_ K-01 Serf collects debris. 02978_ T-07 Excavator is excavating. 02980_ Critical hit (Burn: +37). 02982_ Y-45 Defender destroyed. 02986_ Acquired 64 matter. 02986_ Acquired 63 matter. Map ----- +----------------------------------------------------+ | ???# # ^# #?????? | | ????########## ###########?????? | | ?????????????# # #?????????? | | ?????????????# # #?????????? | | ?????????????# # #?????????? | | ?????????????# # #?????????? | | ?????????##### # #?????????? | | ????????## + # #?????????? | | ????????#T # !# #?????????? | | ????????##" ##!%# #?????????? | | ?????????#[]##!%# #?????????? | | ?????????#[]##*a# k #?????????? | | ?????????#[]## + #?????????? | | ?????????##### Y# #?????????? | | ?????????????# ####/##?????????? | | ??????????"T"# #??????????? | | ????? #????##????? | | ????? #######+## #???? #????? | | ??????????? ??# #?###;##???? | | ???????????? """ # ### #???? | | ???????????? """ / h != #???? | | ??????????????????# * % #???? | | ??????????????????## ###[ #???? | | ???????????????????# #?##g ##???? | | ???????????????????# #??# #????? | | ???????????????????# #??#@ #????? | | ???????????????????# #??# #????? | | ????????????######## #??# #????? | | ????????????# # #??# T????? | | ????????????# # #??# ##???? | | ????????????# + #??""""????? | | ????????????# # #??????????? | | ????????????# # #??????????? | | ????????????# +u#??????????? | | ????????????######## #??????????? | | ???????????????????t #??????????? | | ???????????????????##???????????? | | ????????????????????????????????? | | ????????????????????????????????? | | ????????????????????????????????? | | ????????????????????????????????? | | | | | | | | | | | | | | | | | | | +----------------------------------------------------+ Best States ------------- Heat Dissipation 31 Energy Generation 23 Energy Capacity 250 Matter Stores 300 Matter Capacity 300 Sight Range 16 Robot Scan Range 20 Terrain Scan Density 10 Additional Mass Support 9 Armor Coverage 150 Melee Speed Boost 40 Evasion (%) 64 Item Schematics ----------------- None Robot Schematics ------------------ None Fabricated ------------ Nothing Alien Tech Used ----------------- None Achievements -------------- None Challenges ------------ None RPGLIKE | -11 -10 -10 -10 -9 -8 -8 --------- Run | Jun Mat Min Exi Min Mat Sto Levels Raised 7 | . 1 1 . 1 3 1 XP Earned 14133 | 3000 2004 2157 200 500 5012 1260 XP Spent 9750 | 3000 . . . . 6750 . Upgrades 14 | 6 . . . . 8 . Power Slot 1 | . . . . . 1 . Propulsion Slot 3 | 1 . . . . 2 . Utility Slot 4 | 1 . . . . 3 . Weapon Slot 1 | 1 . . . . . . Heat Dissipation 1 | . . . . . 1 . Inventory Capacity 4 | 3 . . . . 1 . Protomatter Created 269 | . 172 27 . . 70 . Integrity Restored 900 | . 489 12 . . 399 . Core 900 | . 489 12 . . 399 . Protomatter Decayed 93 | . . 60 . . 33 . Game ------ Seed PulseBlastBoosters Manual? 0 Play Time 00:27:41 Cumulative 72.5 hours Start 2024.02.22 @ 19:02:05 End 2024.02.22 @ 22:08:08 Sessions 3 Manual Loads 0 Difficulty Rogue Special Mode Winter2019/RPGLIKE Game No. 57 Rogue 55 Adventurer 2 Explorer 0 Win Type - Total 2 Types 1/1/0/0/0/0/0/0/0 Lore% 36 Gallery% 60 Achievement% 45 Wizard Run 0 Options --------- ASCII 0 Keyboard 0 Movement Mouse Keybinds 1 Fullscreen 2 Font 18/SmallcapsGlow Map View 76x50 Tactical HUD 1 Map Filters NONE Filters NONE Steam 1 RUN: 09f92221-e325-4ce0-8b41-6b5454103ed3